[Event "Titled Tuesday Blitz April 11 Early 2023"]
[White "Kumala, Aleksander"]
[Black "Garrido, Denis"]
[WhiteFideId "1141880"]
[BlackFideId "601217"]
[WhiteElo "2269"]
[BlackElo "2325"]
[Result "1-0"]
[Round "02"]
[TimeControl "180+2"]
[Date "2023.04.11"]
[WhiteClock "0:00:09"]
[BlackClock "0:00:02"]

1. d4 {[%clk 0:03:00]}  Nf6 {[%clk 0:02:59]} 2. Bg5 {[%clk 0:03:00]}  d5 {[%clk 0:02:58]} 3. Bxf6 {[%clk 0:03:00]}  exf6 {[%clk 0:02:57]} 4. e3 {[%clk 0:03:01]}  Be6 {[%clk 0:02:57]} 5. Bd3 {[%clk 0:03:00]}  c6 {[%clk 0:02:55]} 6. Nd2 {[%clk 0:02:59]}  Bd6 {[%clk 0:02:52]} 7. Qf3 {[%clk 0:02:59]}  Nd7 {[%clk 0:02:52]} 8. Ne2 {[%clk 0:02:59]}  O-O {[%clk 0:02:50]} 9. g4 {[%clk 0:02:56]}  Re8 {[%clk 0:02:46]} 10. h4 {[%clk 0:02:52]}  c5 {[%clk 0:02:42]} 11. c3 {[%clk 0:02:46]}  c4 {[%clk 0:02:33]} 12. Bc2 {[%clk 0:02:46]}  b5 {[%clk 0:02:31]} 13. g5 {[%clk 0:02:41]}  b4 {[%clk 0:02:25]} 14. Nf4 {[%clk 0:02:09]}  bxc3 {[%clk 0:02:18]} 15. bxc3 {[%clk 0:02:09]}  Bxf4 {[%clk 0:01:57]} 16. Qxf4 {[%clk 0:02:08]}  Rb8 {[%clk 0:01:52]} 17. gxf6 {[%clk 0:02:04]}  Qxf6 {[%clk 0:01:47]} 18. Qg5 {[%clk 0:01:43]}  Rb2 {[%clk 0:01:44]} 19. Qxf6 {[%clk 0:01:16]}  Nxf6 {[%clk 0:01:43]} 20. Kd1 {[%clk 0:01:16]}  Ng4 {[%clk 0:01:24]} 21. Kc1 {[%clk 0:01:14]}  Reb8 {[%clk 0:01:23]} 22. Rf1 {[%clk 0:01:14]}  h5 {[%clk 0:01:21]} 23. e4 {[%clk 0:01:04]}  a5 {[%clk 0:00:57]} 24. Rb1 {[%clk 0:01:03]}  Rxb1+ {[%clk 0:00:57]} 25. Bxb1 {[%clk 0:01:03]}  a4 {[%clk 0:00:50]} 26. a3 {[%clk 0:00:59]}  dxe4 {[%clk 0:00:41]} 27. Bxe4 {[%clk 0:00:59]}  Nf6 {[%clk 0:00:37]} 28. Bc2 {[%clk 0:00:59]}  Nd5 {[%clk 0:00:36]} 29. Nb1 {[%clk 0:00:51]}  Bd7 {[%clk 0:00:31]} 30. Re1 {[%clk 0:00:51]}  Kf8 {[%clk 0:00:31]} 31. Kd2 {[%clk 0:00:45]}  Rb2 {[%clk 0:00:26]} 32. Kc1 {[%clk 0:00:46]}  Rb8 {[%clk 0:00:26]} 33. Be4 {[%clk 0:00:46]}  Nf4 {[%clk 0:00:21]} 34. Re3 {[%clk 0:00:39]}  Re8 {[%clk 0:00:15]} 35. Nd2 {[%clk 0:00:32]}  g6 {[%clk 0:00:14]} 36. Nxc4 {[%clk 0:00:30]}  Rc8 {[%clk 0:00:14]} 37. Nb6 {[%clk 0:00:27]}  Rc7 {[%clk 0:00:13]} 38. Nxd7+ {[%clk 0:00:23]}  Rxd7 {[%clk 0:00:14]} 39. Kd2 {[%clk 0:00:24]}  Ne6 {[%clk 0:00:12]} 40. Bc2 {[%clk 0:00:23]}  Ke7 {[%clk 0:00:12]} 41. Bxa4 {[%clk 0:00:20]}  Ra7 {[%clk 0:00:11]} 42. Bc2 {[%clk 0:00:19]}  Kd6 {[%clk 0:00:08]} 43. Rf3 {[%clk 0:00:12]}  f5 {[%clk 0:00:05]} 44. Rg3 {[%clk 0:00:13]}  Nf8 {[%clk 0:00:05]} 45. c4 {[%clk 0:00:12]}  Ke7 {[%clk 0:00:04]} 46. c5 {[%clk 0:00:12]}  Rd7 {[%clk 0:00:03]} 47. Re3+ {[%clk 0:00:12]}  Kf6 {[%clk 0:00:03]} 48. Kc3 {[%clk 0:00:12]}  Ne6 {[%clk 0:00:03]} 49. Rxe6+ {[%clk 0:00:10]}  Kxe6 {[%clk 0:00:04]} 50. Bb3+ {[%clk 0:00:11]}  Kf6 {[%clk 0:00:05]} 51. d5 {[%clk 0:00:12]}  Ke5 {[%clk 0:00:05]} 52. c6 {[%clk 0:00:11]}  Rc7 {[%clk 0:00:06]} 53. Kc4 {[%clk 0:00:12]}  Kd6 {[%clk 0:00:06]} 54. Kb5 {[%clk 0:00:13]}  g5 {[%clk 0:00:06]} 55. hxg5 {[%clk 0:00:12]}  h4 {[%clk 0:00:07]} 56. Bc2 {[%clk 0:00:06]}  Kxd5 {[%clk 0:00:07]} 57. Bxf5 {[%clk 0:00:05]}  Rxc6 {[%clk 0:00:03]} 58. Be4+ {[%clk 0:00:06]}  Kxe4 {[%clk 0:00:04]} 59. Kxc6 {[%clk 0:00:06]}  h3 {[%clk 0:00:04]} 60. g6 {[%clk 0:00:07]}  h2 {[%clk 0:00:05]} 61. g7 {[%clk 0:00:08]}  h1=Q {[%clk 0:00:06]} 62. g8=Q {[%clk 0:00:08]}  Qc1+ {[%clk 0:00:06]} 63. Kd7 {[%clk 0:00:09]}  Qd2+ {[%clk 0:00:06]} 64. Ke8 {[%clk 0:00:09]}  Qa5 {[%clk 0:00:06]} 65. Qe6+ {[%clk 0:00:09]}  Kd3 {[%clk 0:00:06]} 66. Qe3+ {[%clk 0:00:09]}  Kc2 {[%clk 0:00:06]} 67. Qe2+ {[%clk 0:00:09]}  Kb3 {[%clk 0:00:07]} 68. Qe3+ {[%clk 0:00:09]}  Kc2 {[%clk 0:00:07]} 69. f4 {[%clk 0:00:09]}  Qa8+ {[%clk 0:00:07]} 70. Kf7 {[%clk 0:00:10]}  Qb7+ {[%clk 0:00:07]} 71. Kf6 {[%clk 0:00:10]}  Qc6+ {[%clk 0:00:07]} 72. Kf5 {[%clk 0:00:10]}  Qd7+ {[%clk 0:00:08]} 73. Qe6 {[%clk 0:00:11]}  Qb5+ {[%clk 0:00:08]} 74. Kf6 {[%clk 0:00:11]}  Qa4 {[%clk 0:00:06]} 75. Qf5+ {[%clk 0:00:09]}  Kb2 {[%clk 0:00:06]} 76. Qe5+ {[%clk 0:00:10]}  Kc1 {[%clk 0:00:06]} 77. f5 {[%clk 0:00:10]}  Qxa3 {[%clk 0:00:05]} 78. Qe6 {[%clk 0:00:10]}  Qc3+ {[%clk 0:00:05]} 79. Kf7 {[%clk 0:00:10]}  Qc7+ {[%clk 0:00:05]} 80. Qe7 {[%clk 0:00:11]}  Qc4+ {[%clk 0:00:06]} 81. Kg6 {[%clk 0:00:11]}  Qg4+ {[%clk 0:00:05]} 82. Kf6 {[%clk 0:00:12]}  Kd2 {[%clk 0:00:05]} 83. Qd6+ {[%clk 0:00:11]}  Kc3 {[%clk 0:00:06]} 84. Qe5+ {[%clk 0:00:11]}  Kb4 {[%clk 0:00:05]} 85. Ke7 {[%clk 0:00:11]}  Qd1 {[%clk 0:00:03]} 86. f6 {[%clk 0:00:11]}  Qa1 {[%clk 0:00:02]} 87. Qxa1 {[%clk 0:00:09]} 1-0


[Site "https://www.chess.com"]

[Event "Titled Tuesday Blitz April 11 Early 2023"]
[White "Kornyukov, Alexey"]
[Black "koncheto"]
[WhiteFideId "4150457"]
[WhiteElo "2352"]
[BlackElo "2536"]
[Result "0-1"]
[Round "02"]
[TimeControl "180+2"]
[Date "2023.04.11"]
[WhiteClock "0:00:08"]
[BlackClock "0:00:08"]

1. e4 {[%clk 0:03:00]}  d5 {[%clk 0:02:56]} 2. exd5 {[%clk 0:02:57]}  Qxd5 {[%clk 0:02:57]} 3. Nc3 {[%clk 0:02:57]}  Qa5 {[%clk 0:02:57]} 4. Nf3 {[%clk 0:02:48]}  c6 {[%clk 0:02:57]} 5. d4 {[%clk 0:02:48]}  Nf6 {[%clk 0:02:57]} 6. Bd2 {[%clk 0:02:48]}  Qc7 {[%clk 0:02:57]} 7. Bd3 {[%clk 0:02:48]}  Bg4 {[%clk 0:02:56]} 8. h3 {[%clk 0:02:47]}  Bh5 {[%clk 0:02:57]} 9. g4 {[%clk 0:02:46]}  Bg6 {[%clk 0:02:57]} 10. Ne5 {[%clk 0:02:44]}  e6 {[%clk 0:02:53]} 11. Bf4 {[%clk 0:02:43]}  Bd6 {[%clk 0:02:53]} 12. Nxg6 {[%clk 0:02:35]}  hxg6 {[%clk 0:02:51]} 13. Bxd6 {[%clk 0:02:35]}  Qxd6 {[%clk 0:02:52]} 14. Ne2 {[%clk 0:02:27]}  Nbd7 {[%clk 0:02:50]} 15. g5 {[%clk 0:02:20]}  Nd5 {[%clk 0:02:35]} 16. c4 {[%clk 0:02:17]}  Nf4 {[%clk 0:02:35]} 17. Nxf4 {[%clk 0:02:08]}  Qxf4 {[%clk 0:02:32]} 18. Qd2 {[%clk 0:02:05]}  Qxd4 {[%clk 0:02:27]} 19. O-O-O {[%clk 0:02:03]}  O-O-O {[%clk 0:02:25]} 20. Bf1 {[%clk 0:01:44]}  Qxd2+ {[%clk 0:02:00]} 21. Rxd2 {[%clk 0:01:43]}  Ne5 {[%clk 0:01:54]} 22. Be2 {[%clk 0:01:35]}  Rh4 {[%clk 0:01:45]} 23. b3 {[%clk 0:01:25]}  Rf4 {[%clk 0:01:42]} 24. Rxd8+ {[%clk 0:01:22]}  Kxd8 {[%clk 0:01:43]} 25. Rh2 {[%clk 0:01:19]}  a5 {[%clk 0:01:04]} 26. Kd2 {[%clk 0:01:12]}  Rf3 {[%clk 0:00:43]} 27. Kc2 {[%clk 0:00:55]}  Rf4 {[%clk 0:00:22]} 28. Kd2 {[%clk 0:00:50]}  c5 {[%clk 0:00:23]} 29. Ke3 {[%clk 0:00:48]}  Rf5 {[%clk 0:00:23]} 30. h4 {[%clk 0:00:46]}  Nc6 {[%clk 0:00:19]} 31. f4 {[%clk 0:00:45]}  e5 {[%clk 0:00:19]} 32. fxe5 {[%clk 0:00:35]}  Rxe5+ {[%clk 0:00:20]} 33. Kd3 {[%clk 0:00:34]}  Nd4 {[%clk 0:00:20]} 34. Bg4 {[%clk 0:00:33]}  Re1 {[%clk 0:00:19]} 35. Kc3 {[%clk 0:00:30]}  Re3+ {[%clk 0:00:18]} 36. Kd2 {[%clk 0:00:29]}  Rg3 {[%clk 0:00:18]} 37. Be2 {[%clk 0:00:27]}  Ke7 {[%clk 0:00:16]} 38. Kc1 {[%clk 0:00:23]}  Kd6 {[%clk 0:00:15]} 39. Kd2 {[%clk 0:00:23]}  Ke5 {[%clk 0:00:15]} 40. Rf2 {[%clk 0:00:22]}  f5 {[%clk 0:00:07]} 41. gxf6 {[%clk 0:00:22]}  gxf6 {[%clk 0:00:08]} 42. Rh2 {[%clk 0:00:22]}  Nxe2 {[%clk 0:00:04]} 43. Rxe2+ {[%clk 0:00:21]}  Kd6 {[%clk 0:00:04]} 44. Rf2 {[%clk 0:00:21]}  f5 {[%clk 0:00:04]} 45. Rh2 {[%clk 0:00:21]}  Ke6 {[%clk 0:00:04]} 46. Ke2 {[%clk 0:00:20]}  f4 {[%clk 0:00:04]} 47. h5 {[%clk 0:00:20]}  gxh5 {[%clk 0:00:03]} 48. Rxh5 {[%clk 0:00:20]}  Rg2+ {[%clk 0:00:04]} 49. Kf3 {[%clk 0:00:20]}  Rxa2 {[%clk 0:00:05]} 50. Kxf4 {[%clk 0:00:21]}  Rb2 {[%clk 0:00:04]} 51. Rh6+ {[%clk 0:00:21]}  Kd7 {[%clk 0:00:04]} 52. Rh7+ {[%clk 0:00:20]}  Kc6 {[%clk 0:00:04]} 53. Rh6+ {[%clk 0:00:20]}  Kc7 {[%clk 0:00:05]} 54. Rh7+ {[%clk 0:00:19]}  Kb6 {[%clk 0:00:05]} 55. Rh6+ {[%clk 0:00:19]}  Ka7 {[%clk 0:00:06]} 56. Rh3 {[%clk 0:00:17]}  a4 {[%clk 0:00:06]} 57. bxa4 {[%clk 0:00:17]}  Rb4 {[%clk 0:00:07]} 58. Ke5 {[%clk 0:00:16]}  Rxc4 {[%clk 0:00:07]} 59. Ra3 {[%clk 0:00:15]}  Rd4 {[%clk 0:00:07]} 60. Rc3 {[%clk 0:00:14]}  Kb6 {[%clk 0:00:06]} 61. Ra3 {[%clk 0:00:09]}  Rd8 {[%clk 0:00:05]} 62. a5+ {[%clk 0:00:09]}  Kc6 {[%clk 0:00:06]} 63. a6 {[%clk 0:00:09]}  b5 {[%clk 0:00:06]} 64. a7 {[%clk 0:00:09]}  Ra8 {[%clk 0:00:06]} 65. Ke4 {[%clk 0:00:07]}  Kb6 {[%clk 0:00:05]} 66. Kd5 {[%clk 0:00:07]}  c4 {[%clk 0:00:04]} 67. Kd4 {[%clk 0:00:07]}  Rxa7 {[%clk 0:00:04]} 68. Rxa7 {[%clk 0:00:07]}  Kxa7 {[%clk 0:00:05]} 69. Kc3 {[%clk 0:00:07]}  Kb6 {[%clk 0:00:05]} 70. Kb4 {[%clk 0:00:08]}  Kc6 {[%clk 0:00:06]} 71. Kc3 {[%clk 0:00:08]}  Kc5 {[%clk 0:00:07]} 72. Kc2 {[%clk 0:00:08]}  b4 {[%clk 0:00:08]} 0-1


[Site "https://www.chess.com"]

[Event "Titled Tuesday Blitz April 11 Early 2023"]
[White "Jimenez Almeida, Luis David"]
[Black "Smith, Garrett L"]
[WhiteFideId "22242244"]
[BlackFideId "2024829"]
[WhiteElo "2245"]
[BlackElo "2319"]
[Result "1-0"]
[Round "02"]
[TimeControl "180+2"]
[Date "2023.04.11"]
[WhiteClock "0:00:59"]
[BlackClock "0:00:21"]

1. e4 {[%clk 0:03:00]}  c5 {[%clk 0:03:00]} 2. Nc3 {[%clk 0:02:59]}  Nc6 {[%clk 0:03:00]} 3. g3 {[%clk 0:02:59]}  g6 {[%clk 0:03:00]} 4. Bg2 {[%clk 0:02:59]}  Bg7 {[%clk 0:03:01]} 5. Nge2 {[%clk 0:02:59]}  e5 {[%clk 0:02:57]} 6. Nd5 {[%clk 0:02:58]}  Nge7 {[%clk 0:02:56]} 7. d3 {[%clk 0:02:57]}  O-O {[%clk 0:02:55]} 8. O-O {[%clk 0:02:56]}  Nxd5 {[%clk 0:02:47]} 9. exd5 {[%clk 0:02:56]}  Ne7 {[%clk 0:02:48]} 10. a4 {[%clk 0:02:53]}  d6 {[%clk 0:02:47]} 11. Rb1 {[%clk 0:02:53]}  f5 {[%clk 0:02:43]} 12. f4 {[%clk 0:02:50]}  b6 {[%clk 0:02:40]} 13. fxe5 {[%clk 0:02:44]}  Bxe5 {[%clk 0:02:40]} 14. Bf4 {[%clk 0:02:42]}  Bb7 {[%clk 0:02:32]} 15. c4 {[%clk 0:02:32]}  Qd7 {[%clk 0:02:27]} 16. b3 {[%clk 0:02:27]}  Bf6 {[%clk 0:02:13]} 17. Qd2 {[%clk 0:02:25]}  a6 {[%clk 0:02:09]} 18. Bh6 {[%clk 0:02:22]}  Rf7 {[%clk 0:02:09]} 19. Nf4 {[%clk 0:02:22]}  b5 {[%clk 0:02:08]} 20. Ne6 {[%clk 0:02:19]}  Kh8 {[%clk 0:02:00]} 21. Kh1 {[%clk 0:02:11]}  Ng8 {[%clk 0:01:37]} 22. Bg5 {[%clk 0:02:09]}  Bxg5 {[%clk 0:01:26]} 23. Qxg5 {[%clk 0:02:06]}  Qe7 {[%clk 0:01:25]} 24. Qd2 {[%clk 0:01:59]}  Nf6 {[%clk 0:01:22]} 25. axb5 {[%clk 0:01:54]}  axb5 {[%clk 0:01:22]} 26. Rfe1 {[%clk 0:01:54]}  Qd7 {[%clk 0:01:17]} 27. Ra1 {[%clk 0:01:52]}  Rxa1 {[%clk 0:01:14]} 28. Rxa1 {[%clk 0:01:52]}  b4 {[%clk 0:01:04]} 29. Ra7 {[%clk 0:01:38]}  Qc8 {[%clk 0:01:04]} 30. d4 {[%clk 0:01:37]}  Qb8 {[%clk 0:00:50]} 31. Ra1 {[%clk 0:01:33]}  cxd4 {[%clk 0:00:49]} 32. Qxd4 {[%clk 0:01:31]}  Kg8 {[%clk 0:00:49]} 33. Qb6 {[%clk 0:01:21]}  Nd7 {[%clk 0:00:44]} 34. Qxb4 {[%clk 0:01:13]}  Re7 {[%clk 0:00:38]} 35. Qa5 {[%clk 0:01:04]}  Ne5 {[%clk 0:00:27]} 36. Qd8+ {[%clk 0:00:59]}  Qxd8 {[%clk 0:00:27]} 37. Nxd8 {[%clk 0:01:00]}  Kg7 {[%clk 0:00:21]} 38. Ra7 {[%clk 0:00:59]} 1-0


[Site "https://www.chess.com"]

[Event "Titled Tuesday Blitz April 11 Early 2023"]
[White "Omelja, Artem"]
[Black "Rian, Kapriaga"]
[WhiteFideId "14119846"]
[BlackFideId "7103263"]
[WhiteElo "2404"]
[BlackElo "2316"]
[Result "1-0"]
[Round "02"]
[TimeControl "180+2"]
[Date "2023.04.11"]
[WhiteClock "0:00:48"]
[BlackClock "0:00:01"]

1. d4 {[%clk 0:03:00]}  Nf6 {[%clk 0:02:59]} 2. c4 {[%clk 0:03:00]}  e6 {[%clk 0:02:59]} 3. Nc3 {[%clk 0:03:00]}  Bb4 {[%clk 0:02:59]} 4. Bd2 {[%clk 0:02:58]}  d5 {[%clk 0:02:56]} 5. e3 {[%clk 0:02:58]}  O-O {[%clk 0:02:55]} 6. Nf3 {[%clk 0:02:58]}  c5 {[%clk 0:02:54]} 7. dxc5 {[%clk 0:02:57]}  Bxc5 {[%clk 0:02:53]} 8. a3 {[%clk 0:02:56]}  a5 {[%clk 0:02:33]} 9. Qc2 {[%clk 0:02:53]}  Nc6 {[%clk 0:02:23]} 10. Rd1 {[%clk 0:02:48]}  Qe7 {[%clk 0:02:05]} 11. Be2 {[%clk 0:02:29]}  dxc4 {[%clk 0:01:58]} 12. Bxc4 {[%clk 0:02:28]}  b6 {[%clk 0:01:55]} 13. O-O {[%clk 0:02:27]}  Bb7 {[%clk 0:01:53]} 14. Na4 {[%clk 0:02:19]}  Rac8 {[%clk 0:01:44]} 15. Nxc5 {[%clk 0:02:15]}  Qxc5 {[%clk 0:01:43]} 16. Bd3 {[%clk 0:02:15]}  Qxc2 {[%clk 0:01:34]} 17. Bxc2 {[%clk 0:02:16]}  Ne5 {[%clk 0:01:21]} 18. Nxe5 {[%clk 0:02:16]}  Rxc2 {[%clk 0:01:20]} 19. Bc3 {[%clk 0:02:17]}  Ne4 {[%clk 0:00:47]} 20. Bd4 {[%clk 0:02:16]}  Ba6 {[%clk 0:00:44]} 21. Rfe1 {[%clk 0:02:05]}  Nxf2 {[%clk 0:00:38]} 22. Rc1 {[%clk 0:02:05]}  Rxc1 {[%clk 0:00:16]} 23. Rxc1 {[%clk 0:02:04]}  Ne4 {[%clk 0:00:14]} 24. Bxb6 {[%clk 0:02:04]}  a4 {[%clk 0:00:14]} 25. h3 {[%clk 0:01:57]}  Rb8 {[%clk 0:00:12]} 26. Bd4 {[%clk 0:01:56]}  f6 {[%clk 0:00:11]} 27. Nc6 {[%clk 0:01:50]}  Re8 {[%clk 0:00:10]} 28. Bc3 {[%clk 0:01:45]}  e5 {[%clk 0:00:09]} 29. Bb4 {[%clk 0:01:45]}  Bb5 {[%clk 0:00:08]} 30. Ne7+ {[%clk 0:01:43]}  Kf7 {[%clk 0:00:08]} 31. Rc7 {[%clk 0:01:43]}  Ke6 {[%clk 0:00:08]} 32. g4 {[%clk 0:01:36]}  g6 {[%clk 0:00:07]} 33. Nc6 {[%clk 0:01:37]}  Bxc6 {[%clk 0:00:06]} 34. Rxc6+ {[%clk 0:01:37]}  Kf7 {[%clk 0:00:06]} 35. Rc7+ {[%clk 0:01:36]}  Ke6 {[%clk 0:00:06]} 36. Rxh7 {[%clk 0:01:35]}  Rc8 {[%clk 0:00:06]} 37. Re7+ {[%clk 0:01:31]}  Kd5 {[%clk 0:00:06]} 38. Rd7+ {[%clk 0:01:29]}  Ke6 {[%clk 0:00:06]} 39. Ra7 {[%clk 0:01:25]}  Rc2 {[%clk 0:00:05]} 40. Rxa4 {[%clk 0:01:22]}  Ng5 {[%clk 0:00:04]} 41. Ra6+ {[%clk 0:01:13]}  Kf7 {[%clk 0:00:04]} 42. Kf1 {[%clk 0:01:11]}  Nf3 {[%clk 0:00:02]} 43. Ra7+ {[%clk 0:00:59]}  Ke6 {[%clk 0:00:01]} 44. e4 {[%clk 0:01:00]}  f5 {[%clk 0:00:01]} 45. Ra6+ {[%clk 0:00:58]}  Kf7 {[%clk 0:00:01]} 46. gxf5 {[%clk 0:00:58]}  gxf5 {[%clk 0:00:02]} 47. exf5 {[%clk 0:00:59]}  e4 {[%clk 0:00:02]} 48. Re6 {[%clk 0:00:58]}  e3 {[%clk 0:00:02]} 49. Rxe3 {[%clk 0:00:57]}  Nh2+ {[%clk 0:00:02]} 50. Ke1 {[%clk 0:00:57]}  Rxb2 {[%clk 0:00:02]} 51. Bd6 {[%clk 0:00:53]}  Ra2 {[%clk 0:00:02]} 52. Re2 {[%clk 0:00:48]}  Nf3+ {[%clk 0:00:01]} 53. Kf2 {[%clk 0:00:48]}  Rxe2+ {[%clk 0:00:01]} 54. Kxe2 {[%clk 0:00:48]}  Nd4+ {[%clk 0:00:01]} 55. Kd3 {[%clk 0:00:47]}  Nxf5 {[%clk 0:00:01]} 56. Bc5 {[%clk 0:00:48]} 1-0


[Site "https://www.chess.com"]

[Event "Titled Tuesday Blitz April 11 Early 2023"]
[White "Dishman, Stephen"]
[Black "Kubicka, Anna"]
[WhiteFideId "403024"]
[BlackFideId "1152254"]
[WhiteElo "2204"]
[BlackElo "2144"]
[Result "0-1"]
[Round "02"]
[TimeControl "180+2"]
[Date "2023.04.11"]
[WhiteClock "0:00:02"]
[BlackClock "0:00:15"]

1. d4 {[%clk 0:03:00]}  Nf6 {[%clk 0:02:59]} 2. Bg5 {[%clk 0:03:00]}  c5 {[%clk 0:02:58]} 3. d5 {[%clk 0:02:59]}  e6 {[%clk 0:02:57]} 4. e4 {[%clk 0:02:56]}  h6 {[%clk 0:02:55]} 5. Bxf6 {[%clk 0:02:55]}  Qxf6 {[%clk 0:02:55]} 6. Nc3 {[%clk 0:02:55]}  d6 {[%clk 0:02:54]} 7. Bb5+ {[%clk 0:02:46]}  Bd7 {[%clk 0:02:51]} 8. Bxd7+ {[%clk 0:02:43]}  Nxd7 {[%clk 0:02:51]} 9. Nf3 {[%clk 0:02:38]}  Be7 {[%clk 0:02:48]} 10. O-O {[%clk 0:02:37]}  O-O {[%clk 0:02:48]} 11. a4 {[%clk 0:02:34]}  a6 {[%clk 0:02:46]} 12. Re1 {[%clk 0:02:29]}  e5 {[%clk 0:02:46]} 13. Nd2 {[%clk 0:02:29]}  Qg6 {[%clk 0:02:45]} 14. Nc4 {[%clk 0:02:22]}  f5 {[%clk 0:02:42]} 15. exf5 {[%clk 0:02:21]}  Rxf5 {[%clk 0:02:43]} 16. f3 {[%clk 0:02:16]}  Raf8 {[%clk 0:02:42]} 17. Kh1 {[%clk 0:02:10]}  Rg5 {[%clk 0:02:40]} 18. Qe2 {[%clk 0:02:06]}  Rf4 {[%clk 0:02:32]} 19. Ne4 {[%clk 0:02:05]}  Rh5 {[%clk 0:02:32]} 20. Ne3 {[%clk 0:01:39]}  Nf6 {[%clk 0:02:14]} 21. Nxf6+ {[%clk 0:01:28]}  Bxf6 {[%clk 0:02:15]} 22. Ng4 {[%clk 0:01:25]}  Rg5 {[%clk 0:02:13]} 23. Ra3 {[%clk 0:01:17]}  h5 {[%clk 0:02:12]} 24. Nxf6+ {[%clk 0:01:16]}  gxf6 {[%clk 0:02:08]} 25. Rb3 {[%clk 0:01:15]}  Qg7 {[%clk 0:01:54]} 26. Rb6 {[%clk 0:01:14]}  Qc7 {[%clk 0:01:48]} 27. a5 {[%clk 0:01:11]}  h4 {[%clk 0:01:46]} 28. b3 {[%clk 0:00:58]}  Kh8 {[%clk 0:01:45]} 29. Qd3 {[%clk 0:00:50]}  f5 {[%clk 0:01:41]} 30. Qc3 {[%clk 0:00:48]}  Qg7 {[%clk 0:01:39]} 31. Re2 {[%clk 0:00:43]}  h3 {[%clk 0:01:38]} 32. g3 {[%clk 0:00:42]}  Rxg3 {[%clk 0:01:36]} 33. hxg3 {[%clk 0:00:42]}  Qxg3 {[%clk 0:01:37]} 34. Rxd6 {[%clk 0:00:32]}  Kh7 {[%clk 0:01:25]} 35. Rd7+ {[%clk 0:00:19]}  Kh6 {[%clk 0:01:23]} 36. Rd6+ {[%clk 0:00:17]}  Kh5 {[%clk 0:01:21]} 37. Qe3 {[%clk 0:00:16]}  e4 {[%clk 0:01:00]} 38. Qf2 {[%clk 0:00:15]}  Rxf3 {[%clk 0:00:54]} 39. Qxg3 {[%clk 0:00:15]}  Rxg3 {[%clk 0:00:55]} 40. Rf6 {[%clk 0:00:14]}  Kg5 {[%clk 0:00:54]} 41. Rf8 {[%clk 0:00:13]}  Rf3 {[%clk 0:00:39]} 42. d6 {[%clk 0:00:11]}  Rf1+ {[%clk 0:00:39]} 43. Kh2 {[%clk 0:00:11]}  Rd1 {[%clk 0:00:40]} 44. Kxh3 {[%clk 0:00:10]}  Rxd6 {[%clk 0:00:40]} 45. Rg2+ {[%clk 0:00:10]}  Kf4 {[%clk 0:00:40]} 46. Rf2+ {[%clk 0:00:10]}  Ke3 {[%clk 0:00:41]} 47. R2xf5 {[%clk 0:00:10]}  Kd4 {[%clk 0:00:36]} 48. Re8 {[%clk 0:00:08]}  Rh6+ {[%clk 0:00:30]} 49. Kg4 {[%clk 0:00:08]}  Rh2 {[%clk 0:00:25]} 50. Rfe5 {[%clk 0:00:07]}  Re2 {[%clk 0:00:24]} 51. Kf4 {[%clk 0:00:06]}  Rf2+ {[%clk 0:00:22]} 52. Kg5 {[%clk 0:00:06]}  Rg2+ {[%clk 0:00:20]} 53. Kf5 {[%clk 0:00:06]}  Rf2+ {[%clk 0:00:20]} 54. Ke6 {[%clk 0:00:06]}  Rxc2 {[%clk 0:00:20]} 55. Rd8+ {[%clk 0:00:06]}  Ke3 {[%clk 0:00:20]} 56. Rdd5 {[%clk 0:00:06]}  c4 {[%clk 0:00:18]} 57. bxc4 {[%clk 0:00:06]}  Rxc4 {[%clk 0:00:19]} 58. Rc5 {[%clk 0:00:06]}  Rb4 {[%clk 0:00:19]} 59. Rc7 {[%clk 0:00:05]}  Kd3 {[%clk 0:00:17]} 60. Kf5 {[%clk 0:00:05]}  e3 {[%clk 0:00:17]} 61. Rce7 {[%clk 0:00:05]}  Rb5 {[%clk 0:00:15]} 62. Rxb5 {[%clk 0:00:03]}  axb5 {[%clk 0:00:15]} 63. Rxb7 {[%clk 0:00:02]}  e2 {[%clk 0:00:15]} 64. Re7 {[%clk 0:00:02]}  b4 {[%clk 0:00:15]} 0-1


[Site "https://www.chess.com"]